[Event "GrandPrix_29.05"]
[Site "Chess.com"]
[Date "2020.05.29"]
[Round "5"]
[White "GMStefanova"]
[Black "Shahinyan_ChessMood"]
[Result "0-1"]
[WhiteElo "2324"]
[BlackElo "2373"]
[TimeControl "600+2"]
[EndTime "11:30:29 PDT"]
[Termination "Shahinyan_ChessMood won by resignation"]

1. d4 {[%clk 0:09:59.9]} 1... Nf6 {[%clk 0:09:54.7]} 2. Nf3 {[%clk 0:10:00.9]}
2... c5 {[%clk 0:09:54.6]} 3. d5 {[%clk 0:09:58]} 3... e6 {[%clk 0:09:54.6]} 4.
Nc3 {[%clk 0:09:40.6]} 4... b5 {[%clk 0:09:54.6]} 5. dxe6 {[%clk 0:09:27.3]}
5... fxe6 {[%clk 0:09:56.5]} 6. Nxb5 {[%clk 0:09:21.7]} 6... d5 {[%clk
0:09:53.9]} 7. e3 {[%clk 0:09:15.4]} 7... a6 {[%clk 0:09:41.4]} 8. Nc3 {[%clk
0:08:44.3]} 8... Bb7 {[%clk 0:09:17.9]} 9. e4 {[%clk 0:07:13.6]} 9... d4 {[%clk
0:08:37.7]} 10. e5 {[%clk 0:07:13.3]} 10... Nfd7 {[%clk 0:08:22.7]} 11. Nb1
{[%clk 0:07:03.3]} 11... Nc6 {[%clk 0:07:55.2]} 12. Bf4 {[%clk 0:06:57.4]} 12...
Be7 {[%clk 0:07:20.8]} 13. Bc4 {[%clk 0:06:35.4]} 13... Qb6 {[%clk 0:07:21.7]}
14. Nbd2 {[%clk 0:06:22]} 14... Na5 {[%clk 0:07:14.4]} 15. Bd3 {[%clk
0:06:05.7]} 15... O-O {[%clk 0:07:14.1]} 16. Bg3 {[%clk 0:05:59.9]} 16... c4
{[%clk 0:06:36.9]} 17. Bxc4 {[%clk 0:05:59.7]} 17... Bxf3 {[%clk 0:05:21.9]} 18.
gxf3 {[%clk 0:05:57.5]} 18... Nxc4 {[%clk 0:04:57.2]} 19. Nxc4 {[%clk
0:05:57.9]} 19... Qb4+ {[%clk 0:04:22.2]} 20. Nd2 {[%clk 0:05:57.8]} 20... Qxb2
{[%clk 0:03:57]} 21. O-O {[%clk 0:05:39.9]} 21... Rac8 {[%clk 0:03:57.9]} 22.
Nb3 {[%clk 0:05:34.5]} 22... Rxc2 {[%clk 0:03:57.4]} 23. Qxd4 {[%clk 0:03:53.8]}
23... Nc5 {[%clk 0:03:53.8]} 24. Qxb2 {[%clk 0:03:43.1]} 24... Rxb2 {[%clk
0:03:55.7]} 25. Nd4 {[%clk 0:03:40.7]} 25... h5 {[%clk 0:03:50]} 26. Nc6 {[%clk
0:02:56.5]} 26... Bg5 {[%clk 0:03:48.5]} 27. h4 {[%clk 0:02:57]} 27... Bh6
{[%clk 0:03:49]} 28. Kg2 {[%clk 0:02:40.8]} 28... Kh7 {[%clk 0:02:39.1]} 29.
Rfb1 {[%clk 0:02:33.6]} 29... Rc2 {[%clk 0:02:27.6]} 30. Rb6 {[%clk 0:02:17.3]}
30... Rd2 {[%clk 0:01:42.3]} 31. a4 {[%clk 0:02:03.2]} 31... Be3 {[%clk
0:01:39.2]} 32. a5 {[%clk 0:01:43.3]} 32... Nd3 {[%clk 0:01:33.7]} 33. Rb3
{[%clk 0:00:59.9]} 33... Nxf2 {[%clk 0:01:33.3]} 34. Rf1 {[%clk 0:00:33]} 34...
Ne4+ {[%clk 0:01:17.6]} 35. Kh3 {[%clk 0:00:32.2]} 35... Nxg3 {[%clk 0:01:18.8]}
36. Kxg3 {[%clk 0:00:26.8]} 36... Bf4+ {[%clk 0:01:19.6]} 0-1

[Event "GrandPrix_29.05"]
[Site "Chess.com"]
[Date "2020.05.29"]
[Round "5"]
[White "fm_magua"]
[Black "nurgyulsalimova"]
[Result "1/2-1/2"]
[WhiteElo "1820"]
[BlackElo "2189"]
[TimeControl "600+2"]
[EndTime "11:30:32 PDT"]
[Termination "Game drawn - insufficient material"]

1. e4 {[%clk 0:10:01.9]} 1... c6 {[%clk 0:10:00.6]} 2. d4 {[%clk 0:10:02.5]}
2... d5 {[%clk 0:10:01.7]} 3. e5 {[%clk 0:10:04.2]} 3... Bf5 {[%clk 0:10:02.2]}
4. h4 {[%clk 0:10:04.9]} 4... h5 {[%clk 0:09:53.7]} 5. c4 {[%clk 0:10:04.9]}
5... e6 {[%clk 0:09:45.4]} 6. Bg5 {[%clk 0:10:05.1]} 6... Qb6 {[%clk 0:09:31.4]}
7. Qd2 {[%clk 0:10:05.8]} 7... dxc4 {[%clk 0:08:38.8]} 8. Nc3 {[%clk 0:10:05.1]}
8... Ne7 {[%clk 0:07:56.2]} 9. Bxc4 {[%clk 0:10:05]} 9... Nd5 {[%clk 0:07:52.7]}
10. Nge2 {[%clk 0:10:04.6]} 10... Nd7 {[%clk 0:07:42.8]} 11. O-O {[%clk
0:10:04.6]} 11... Qb4 {[%clk 0:05:29.6]} 12. Bb3 {[%clk 0:09:50.1]} 12... Be7
{[%clk 0:05:14.8]} 13. Ng3 {[%clk 0:09:40.7]} 13... Bg6 {[%clk 0:05:06]} 14.
Bxe7 {[%clk 0:09:32.8]} 14... Qxe7 {[%clk 0:05:05.9]} 15. Nce4 {[%clk
0:09:31.7]} 15... O-O {[%clk 0:04:58.7]} 16. Ng5 {[%clk 0:09:18.1]} 16... Qb4
{[%clk 0:04:44.3]} 17. Qd1 {[%clk 0:09:08]} 17... c5 {[%clk 0:04:30.1]} 18. Bxd5
{[%clk 0:08:26.5]} 18... exd5 {[%clk 0:04:30]} 19. e6 {[%clk 0:08:27.8]} 19...
Nf6 {[%clk 0:03:17.2]} 20. exf7+ {[%clk 0:08:27.8]} 20... Bxf7 {[%clk
0:03:18.3]} 21. Nf5 {[%clk 0:08:23.7]} 21... cxd4 {[%clk 0:03:13.1]} 22. a3
{[%clk 0:08:22.7]} 22... Qb6 {[%clk 0:02:46.7]} 23. Re1 {[%clk 0:07:58.1]} 23...
Ng4 {[%clk 0:02:07.2]} 24. Qd3 {[%clk 0:06:51.7]} 24... g6 {[%clk 0:01:23.1]}
25. Nxd4 {[%clk 0:06:50.6]} 25... Qd6 {[%clk 0:01:16.6]} 26. g3 {[%clk
0:06:39.9]} 26... Qf6 {[%clk 0:01:14.1]} 27. Re2 {[%clk 0:05:56.5]} 27... Rae8
{[%clk 0:01:13.8]} 28. Rae1 {[%clk 0:05:56.8]} 28... Rxe2 {[%clk 0:01:11.2]} 29.
Rxe2 {[%clk 0:05:57.9]} 29... Re8 {[%clk 0:01:10]} 30. Rxe8+ {[%clk 0:05:37.4]}
30... Bxe8 {[%clk 0:01:11.9]} 31. f3 {[%clk 0:05:38.8]} 31... Ne5 {[%clk
0:01:10.5]} 32. Qe3 {[%clk 0:05:39.2]} 32... Bd7 {[%clk 0:01:04.4]} 33. Ne2
{[%clk 0:05:14.2]} 33... Nc4 {[%clk 0:01:01]} 34. Qc5 {[%clk 0:05:09.7]} 34...
Qb6 {[%clk 0:00:53.2]} 35. Qxb6 {[%clk 0:05:06.8]} 35... axb6 {[%clk 0:00:54.6]}
36. Nf4 {[%clk 0:05:04.5]} 36... Nxb2 {[%clk 0:00:50.6]} 37. Nxd5 {[%clk
0:05:02.3]} 37... Bc6 {[%clk 0:00:49.2]} 38. Nxb6 {[%clk 0:04:59.3]} 38... Kg7
{[%clk 0:00:44.7]} 39. Kf2 {[%clk 0:04:52.5]} 39... Kf6 {[%clk 0:00:41.8]} 40.
Ke3 {[%clk 0:04:50.1]} 40... Ke5 {[%clk 0:00:40.7]} 41. f4+ {[%clk 0:04:46.4]}
41... Kd6 {[%clk 0:00:38.1]} 42. Kd4 {[%clk 0:04:43.2]} 42... Nd1 {[%clk
0:00:32.1]} 43. Nc4+ {[%clk 0:04:42.2]} 43... Ke7 {[%clk 0:00:32.4]} 44. Ne5
{[%clk 0:04:41.4]} 44... Be8 {[%clk 0:00:29.8]} 45. Ne4 {[%clk 0:04:36.3]} 45...
Nb2 {[%clk 0:00:27.7]} 46. Nc5 {[%clk 0:04:32.3]} 46... b6 {[%clk 0:00:28.5]}
47. Ncd3 {[%clk 0:04:32.2]} 47... Na4 {[%clk 0:00:25.6]} 48. Kc4 {[%clk
0:04:26.6]} 48... Kd6 {[%clk 0:00:24.1]} 49. Kb4 {[%clk 0:04:15.5]} 49... b5
{[%clk 0:00:25.2]} 50. g4 {[%clk 0:04:05.3]} 50... hxg4 {[%clk 0:00:25.8]} 51.
Nxg4 {[%clk 0:04:06.6]} 51... Ke6 {[%clk 0:00:20]} 52. Ne3 {[%clk 0:04:07]}
52... Nb6 {[%clk 0:00:19.5]} 53. Nc5+ {[%clk 0:04:06.4]} 53... Kf6 {[%clk
0:00:19.8]} 54. Ne4+ {[%clk 0:04:07.1]} 54... Ke6 {[%clk 0:00:20.6]} 55. Kc5
{[%clk 0:04:04.2]} 55... Na4+ {[%clk 0:00:21.8]} 56. Kd4 {[%clk 0:04:05.3]}
56... Nb6 {[%clk 0:00:22.9]} 57. Ng5+ {[%clk 0:04:01.6]} 57... Kf6 {[%clk
0:00:22.3]} 58. Kc5 {[%clk 0:04:02.9]} 58... Na4+ {[%clk 0:00:23.2]} 59. Kd6
{[%clk 0:04:04.1]} 59... Nc3 {[%clk 0:00:23.5]} 60. Nh7+ {[%clk 0:03:54.9]}
60... Kg7 {[%clk 0:00:23.8]} 61. Ke7 {[%clk 0:03:51.7]} 61... Kxh7 {[%clk
0:00:17.5]} 62. Kxe8 {[%clk 0:03:52.8]} 62... Nb1 {[%clk 0:00:18.7]} 63. Nc2
{[%clk 0:03:53.1]} 63... Kh6 {[%clk 0:00:19.5]} 64. Kf7 {[%clk 0:03:54]} 64...
Kh5 {[%clk 0:00:20.6]} 65. Kf6 {[%clk 0:03:55.1]} 65... Nc3 {[%clk 0:00:20.6]}
66. Nd4 {[%clk 0:03:53.9]} 66... Nd5+ {[%clk 0:00:20.6]} 67. Ke5 {[%clk
0:03:55.1]} 67... Nc3 {[%clk 0:00:20.9]} 68. f5 {[%clk 0:03:55.3]} 68... gxf5
{[%clk 0:00:21.3]} 69. Nxf5 {[%clk 0:03:56.6]} 69... Nb1 {[%clk 0:00:21.9]} 70.
Nd4 {[%clk 0:03:50.3]} 70... Nxa3 {[%clk 0:00:22.7]} 71. Nxb5 {[%clk 0:03:50.8]}
71... Nxb5 {[%clk 0:00:23.7]} 72. Kd5 {[%clk 0:03:51.5]} 72... Kxh4 {[%clk
0:00:25.1]} 1/2-1/2

[Event "GrandPrix_29.05"]
[Site "Chess.com"]
[Date "2020.05.29"]
[Round "5"]
[White "PresidenteMNE"]
[Black "Alexander_Donchenko"]
[Result "0-1"]
[WhiteElo "2537"]
[BlackElo "2769"]
[TimeControl "600+2"]
[EndTime "11:30:45 PDT"]
[Termination "Alexander_Donchenko won by resignation"]

1. d4 {[%clk 0:10:01.9]} 1... Nf6 {[%clk 0:10:00.4]} 2. Bg5 {[%clk 0:10:02.6]}
2... d5 {[%clk 0:09:53.3]} 3. e3 {[%clk 0:09:55.9]} 3... c5 {[%clk 0:09:53]} 4.
Bxf6 {[%clk 0:09:52.4]} 4... gxf6 {[%clk 0:09:54.9]} 5. c4 {[%clk 0:09:52.4]}
5... dxc4 {[%clk 0:09:53.8]} 6. Bxc4 {[%clk 0:09:50.3]} 6... cxd4 {[%clk
0:09:50.7]} 7. exd4 {[%clk 0:09:47.5]} 7... Nc6 {[%clk 0:09:50.4]} 8. d5 {[%clk
0:09:43.1]} 8... Ne5 {[%clk 0:09:45.6]} 9. Bb3 {[%clk 0:09:10.3]} 9... Rg8
{[%clk 0:09:19.6]} 10. Nf3 {[%clk 0:08:18]} 10... Rxg2 {[%clk 0:08:16.8]} 11.
Nxe5 {[%clk 0:08:18.9]} 11... fxe5 {[%clk 0:08:17.7]} 12. Qf3 {[%clk 0:08:11.5]}
12... Rg6 {[%clk 0:07:41.6]} 13. Nc3 {[%clk 0:08:11.6]} 13... Bh6 {[%clk
0:07:30.2]} 14. d6 {[%clk 0:07:22.3]} 14... Rf6 {[%clk 0:07:05.9]} 15. Qg3
{[%clk 0:07:14.3]} 15... Rg6 {[%clk 0:06:00.3]} 16. Qxe5 {[%clk 0:06:24.2]}
16... Bg7 {[%clk 0:05:07.2]} 17. Qxe7+ {[%clk 0:05:14.1]} 17... Qxe7+ {[%clk
0:05:08.1]} 18. dxe7 {[%clk 0:05:16]} 18... Kxe7 {[%clk 0:04:49.1]} 19. O-O-O
{[%clk 0:05:07.5]} 19... Bg4 {[%clk 0:04:27.9]} 20. Rhe1+ {[%clk 0:04:59.8]}
20... Kf8 {[%clk 0:04:26]} 21. f3 {[%clk 0:04:27.8]} 21... Bf5 {[%clk
0:03:09.9]} 22. Ne4 {[%clk 0:04:28.5]} 22... Rc8+ {[%clk 0:02:51.6]} 23. Kd2
{[%clk 0:02:45.6]} 23... Bxb2 {[%clk 0:02:50.5]} 24. Ke3 {[%clk 0:02:37.8]}
24... Be5 {[%clk 0:02:25]} 25. h4 {[%clk 0:02:22]} 25... Rg2 {[%clk 0:01:51.6]}
26. Rd5 {[%clk 0:01:37.6]} 26... Re8 {[%clk 0:01:43.2]} 27. Red1 {[%clk
0:01:31.4]} 27... Rh2 {[%clk 0:01:28.1]} 28. Rb5 {[%clk 0:00:18.6]} 28... b6
{[%clk 0:01:16]} 29. Rdd5 {[%clk 0:00:17.7]} 29... f6 {[%clk 0:01:12.8]} 30. Rb4
{[%clk 0:00:03.6]} 30... Rxh4 {[%clk 0:01:06.6]} 31. Rc4 {[%clk 0:00:03.4]}
31... Be6 {[%clk 0:01:03.2]} 32. Rc7 {[%clk 0:00:03.9]} 0-1

[Event "GrandPrix_29.05"]
[Site "Chess.com"]
[Date "2020.05.29"]
[Round "5"]
[White "jafarlib"]
[Black "arminmusovic"]
[Result "1-0"]
[WhiteElo "2154"]
[BlackElo "2224"]
[TimeControl "600+2"]
[EndTime "11:30:46 PDT"]
[Termination "jafarlib won by resignation"]

1. e4 {[%clk 0:10:01.9]} 1... c6 {[%clk 0:10:01]} 2. Nc3 {[%clk 0:10:02.4]} 2...
d5 {[%clk 0:10:02.9]} 3. Nf3 {[%clk 0:10:04.3]} 3... dxe4 {[%clk 0:10:04.1]} 4.
Nxe4 {[%clk 0:10:04.9]} 4... Nf6 {[%clk 0:10:06]} 5. Nxf6+ {[%clk 0:10:06.1]}
5... exf6 {[%clk 0:10:07.9]} 6. d4 {[%clk 0:10:08]} 6... Bd6 {[%clk 0:10:08.2]}
7. Bd3 {[%clk 0:10:08.5]} 7... O-O {[%clk 0:10:09.3]} 8. O-O {[%clk 0:10:09.3]}
8... Bg4 {[%clk 0:10:10.5]} 9. h3 {[%clk 0:10:09.9]} 9... Bh5 {[%clk 0:10:08.9]}
10. c4 {[%clk 0:09:56.5]} 10... Nd7 {[%clk 0:09:58]} 11. Be3 {[%clk 0:09:54.2]}
11... Re8 {[%clk 0:09:58.5]} 12. Re1 {[%clk 0:09:16.3]} 12... Rc8 {[%clk
0:09:48.1]} 13. g4 {[%clk 0:09:01.9]} 13... Bg6 {[%clk 0:09:47.8]} 14. Nh4
{[%clk 0:09:02.4]} 14... Nf8 {[%clk 0:09:44.4]} 15. Nf5 {[%clk 0:08:51.4]} 15...
Bb8 {[%clk 0:09:42.8]} 16. Qf3 {[%clk 0:08:43.4]} 16... Qc7 {[%clk 0:09:20.2]}
17. Qg2 {[%clk 0:08:28.4]} 17... Ne6 {[%clk 0:08:50.3]} 18. Rad1 {[%clk
0:08:11.1]} 18... Rcd8 {[%clk 0:06:34.7]} 19. Bb1 {[%clk 0:07:19]} 19... Qa5
{[%clk 0:05:53.5]} 20. Kf1 {[%clk 0:06:27.9]} 20... Qa6 {[%clk 0:04:41]} 21. b3
{[%clk 0:06:16.4]} 21... Qa5 {[%clk 0:04:02.2]} 22. Qf3 {[%clk 0:05:40.5]} 22...
Kh8 {[%clk 0:03:50.9]} 23. h4 {[%clk 0:05:25.8]} 23... Qc7 {[%clk 0:03:21.9]}
24. h5 {[%clk 0:05:21.2]} 24... Bxf5 {[%clk 0:03:18.6]} 25. Qxf5 {[%clk
0:05:23.1]} 25... Nf8 {[%clk 0:03:17.4]} 26. h6 {[%clk 0:05:21]} 26... Qh2
{[%clk 0:03:05.3]} 27. Ke2 {[%clk 0:05:05.1]} 27... Ng6 {[%clk 0:02:46.6]} 28.
Rh1 {[%clk 0:05:02.6]} 28... Rxe3+ {[%clk 0:01:57.3]} 29. Kxe3 {[%clk
0:04:57.5]} 29... Re8+ {[%clk 0:01:42.8]} 30. Kd3 {[%clk 0:04:36.5]} 30... Qd6
{[%clk 0:01:04.1]} 31. Kc3 {[%clk 0:04:31.5]} 31... a5 {[%clk 0:00:58.6]} 32. c5
{[%clk 0:03:52]} 32... Qf8 {[%clk 0:00:59.1]} 33. hxg7+ {[%clk 0:03:49.8]} 33...
Qxg7 {[%clk 0:01:00.2]} 34. Rde1 {[%clk 0:03:50.5]} 34... Rd8 {[%clk 0:00:56.7]}
35. Rh3 {[%clk 0:03:39.5]} 35... Bf4 {[%clk 0:00:32.5]} 36. Re4 {[%clk
0:03:04.9]} 36... Bc7 {[%clk 0:00:17.3]} 37. Rhe3 {[%clk 0:03:00]} 37... Qf8
{[%clk 0:00:12.4]} 38. Qxf6+ {[%clk 0:03:00.5]} 38... Kg8 {[%clk 0:00:13.9]} 39.
Re7 {[%clk 0:02:40.2]} 39... Bf4 {[%clk 0:00:12]} 40. Re2 {[%clk 0:02:25.1]}
40... Bh6 {[%clk 0:00:13]} 41. Rxf7 {[%clk 0:02:22.1]} 41... Qxf7 {[%clk
0:00:13.4]} 42. Qxd8+ {[%clk 0:02:23.1]} 42... Nf8 {[%clk 0:00:13.5]} 43. Bf5
{[%clk 0:02:07.5]} 43... Kh8 {[%clk 0:00:12.3]} 44. Re7 {[%clk 0:02:06.3]} 44...
Qf6 {[%clk 0:00:12]} 45. Rxh7+ {[%clk 0:02:06.3]} 45... Kg8 {[%clk 0:00:13.5]}
46. Qxf6 {[%clk 0:02:06.9]} 46... Bd2+ {[%clk 0:00:13.5]} 1-0

[Event "GrandPrix_29.05"]
[Site "Chess.com"]
[Date "2020.05.29"]
[Round "5"]
[White "SacrificeGod"]
[Black "RaphaeI"]
[Result "0-1"]
[WhiteElo "2306"]
[BlackElo "2299"]
[TimeControl "600+2"]
[EndTime "11:30:52 PDT"]
[Termination "RaphaeI won by resignation"]

1. e4 {[%clk 0:10:01.9]} 1... c5 {[%clk 0:09:58.2]} 2. Nc3 {[%clk 0:10:01.3]}
2... Nc6 {[%clk 0:09:57.8]} 3. g3 {[%clk 0:10:02.5]} 3... g6 {[%clk 0:09:58.3]}
4. Bg2 {[%clk 0:10:03.8]} 4... Bg7 {[%clk 0:09:59.7]} 5. d3 {[%clk 0:10:05.5]}
5... d6 {[%clk 0:10:01]} 6. f4 {[%clk 0:10:06.6]} 6... e6 {[%clk 0:10:01.2]} 7.
Nf3 {[%clk 0:10:07.8]} 7... Nge7 {[%clk 0:10:02.9]} 8. O-O {[%clk 0:10:09.1]}
8... O-O {[%clk 0:10:04.4]} 9. Be3 {[%clk 0:10:10.2]} 9... b6 {[%clk 0:10:06]}
10. Bf2 {[%clk 0:10:11.2]} 10... Ba6 {[%clk 0:09:41.2]} 11. Qd2 {[%clk
0:10:10.8]} 11... Qd7 {[%clk 0:08:15.5]} 12. Rae1 {[%clk 0:10:09.5]} 12... Rad8
{[%clk 0:05:37.4]} 13. e5 {[%clk 0:08:27.1]} 13... Qc7 {[%clk 0:05:36.6]} 14.
Ne4 {[%clk 0:07:30]} 14... dxe5 {[%clk 0:05:25]} 15. fxe5 {[%clk 0:07:27.9]}
15... Nxe5 {[%clk 0:05:25.9]} 16. Nxe5 {[%clk 0:07:18.3]} 16... Bxe5 {[%clk
0:05:26.9]} 17. Qh6 {[%clk 0:07:14.6]} 17... Nf5 {[%clk 0:05:23.9]} 18. Qh3
{[%clk 0:07:11.9]} 18... h5 {[%clk 0:04:47.5]} 19. Ng5 {[%clk 0:05:58.4]} 19...
Bf6 {[%clk 0:04:27]} 20. Ne4 {[%clk 0:05:48.8]} 20... Bg7 {[%clk 0:03:11.6]} 21.
g4 {[%clk 0:05:40.1]} 21... hxg4 {[%clk 0:03:06.2]} 22. Qxg4 {[%clk 0:05:38.9]}
22... c4 {[%clk 0:03:00.4]} 23. Qh3 {[%clk 0:03:37.3]} 23... cxd3 {[%clk
0:02:59.3]} 24. Ng5 {[%clk 0:03:35.2]} 24... Bh6 {[%clk 0:03:00]} 25. Bd4 {[%clk
0:01:57.8]} 25... Rxd4 {[%clk 0:01:28.5]} 26. Rxf5 {[%clk 0:01:52.5]} 26... Bxg5
{[%clk 0:01:29.3]} 27. Rxe6 {[%clk 0:00:45.2]} 27... dxc2 {[%clk 0:00:32.2]} 28.
Rxg6+ {[%clk 0:00:40.1]} 28... fxg6 {[%clk 0:00:33.1]} 29. Rxf8+ {[%clk
0:00:37.5]} 29... Kxf8 {[%clk 0:00:34.3]} 30. Qh8+ {[%clk 0:00:38.7]} 30... Kf7
{[%clk 0:00:35.7]} 31. Qh7+ {[%clk 0:00:37.1]} 31... Kf6 {[%clk 0:00:36.9]} 0-1

[Event "GrandPrix_29.05"]
[Site "Chess.com"]
[Date "2020.05.29"]
[Round "5"]
[White "CherepZhenya"]
[Black "ulkaf961"]
[Result "1/2-1/2"]
[WhiteElo "2125"]
[BlackElo "2042"]
[TimeControl "600+2"]
[EndTime "11:31:01 PDT"]
[Termination "Game drawn by repetition"]

1. e4 {[%clk 0:09:59.9]} 1... e6 {[%clk 0:10:00.8]} 2. d4 {[%clk 0:10:00.4]}
2... d5 {[%clk 0:10:01.6]} 3. Nc3 {[%clk 0:10:01.4]} 3... Nf6 {[%clk 0:10:01.9]}
4. e5 {[%clk 0:10:01.3]} 4... Nfd7 {[%clk 0:10:02.6]} 5. f4 {[%clk 0:10:02.2]}
5... c5 {[%clk 0:10:03.8]} 6. Nf3 {[%clk 0:10:02.9]} 6... Nc6 {[%clk 0:10:04.9]}
7. Be3 {[%clk 0:10:03.4]} 7... cxd4 {[%clk 0:10:05.6]} 8. Nxd4 {[%clk
0:10:03.9]} 8... Bc5 {[%clk 0:10:07.1]} 9. Qd2 {[%clk 0:10:04.3]} 9... O-O
{[%clk 0:10:08.2]} 10. O-O-O {[%clk 0:10:04.6]} 10... a6 {[%clk 0:10:09.6]} 11.
Kb1 {[%clk 0:10:03.7]} 11... Nxd4 {[%clk 0:10:10.4]} 12. Bxd4 {[%clk 0:10:04.2]}
12... b5 {[%clk 0:10:12]} 13. Qf2 {[%clk 0:09:43.5]} 13... Qc7 {[%clk
0:10:01.5]} 14. Bd3 {[%clk 0:09:42.6]} 14... Bxd4 {[%clk 0:09:42.5]} 15. Qxd4
{[%clk 0:09:42.2]} 15... Rb8 {[%clk 0:09:32.3]} 16. h4 {[%clk 0:09:37.7]} 16...
b4 {[%clk 0:08:24]} 17. Ne2 {[%clk 0:09:34.9]} 17... a5 {[%clk 0:08:22.6]} 18.
h5 {[%clk 0:09:24]} 18... a4 {[%clk 0:07:30.9]} 19. h6 {[%clk 0:09:18.6]} 19...
g6 {[%clk 0:07:30.8]} 20. g4 {[%clk 0:09:01.8]} 20... a3 {[%clk 0:07:03.2]} 21.
b3 {[%clk 0:08:55.8]} 21... Qc5 {[%clk 0:07:03.1]} 22. Qxc5 {[%clk 0:08:35.6]}
22... Nxc5 {[%clk 0:07:03.6]} 23. g5 {[%clk 0:08:35.2]} 23... Bb7 {[%clk
0:06:40.8]} 24. Nd4 {[%clk 0:08:33.5]} 24... Rfc8 {[%clk 0:06:36.2]} 25. Rc1
{[%clk 0:08:22.9]} 25... Nxd3 {[%clk 0:04:12.8]} 26. cxd3 {[%clk 0:08:21.7]}
26... Ba6 {[%clk 0:04:03.3]} 27. Rh3 {[%clk 0:07:47.8]} 27... Kf8 {[%clk
0:03:44.1]} 28. Rc6 {[%clk 0:05:44.2]} 28... Rxc6 {[%clk 0:01:47.5]} 29. Nxc6
{[%clk 0:05:43.1]} 29... Rb5 {[%clk 0:01:47.6]} 30. Nd4 {[%clk 0:04:24.9]} 30...
Rc5 {[%clk 0:01:43.9]} 31. Nc2 {[%clk 0:04:23.9]} 31... Rc3 {[%clk 0:01:43]} 32.
Nxb4 {[%clk 0:04:24.1]} 32... Bb5 {[%clk 0:01:43.8]} 33. Rh1 {[%clk 0:04:05]}
33... Bxd3+ {[%clk 0:01:35.8]} 34. Nxd3 {[%clk 0:04:03.4]} 34... Rxd3 {[%clk
0:01:37.1]} 35. Rc1 {[%clk 0:04:04]} 35... Rf3 {[%clk 0:01:18.5]} 36. Rc8+
{[%clk 0:03:55.2]} 36... Ke7 {[%clk 0:01:16.7]} 37. Rh8 {[%clk 0:03:46.4]} 37...
Rxf4 {[%clk 0:01:17.7]} 38. Rxh7 {[%clk 0:03:46.8]} 38... Rg4 {[%clk 0:01:13.3]}
39. Rh8 {[%clk 0:03:07.9]} 39... Rxg5 {[%clk 0:01:14.2]} 40. Ra8 {[%clk
0:02:39.1]} 40... Rh5 {[%clk 0:01:14.3]} 41. Rxa3 {[%clk 0:02:38.4]} 41... Rxh6
{[%clk 0:01:13.7]} 42. Ra7+ {[%clk 0:02:38.4]} 42... Ke8 {[%clk 0:01:09.4]} 43.
a4 {[%clk 0:02:25.3]} 43... Rh4 {[%clk 0:00:55.8]} 44. a5 {[%clk 0:02:21.2]}
44... Rb4 {[%clk 0:00:55.7]} 45. Kb2 {[%clk 0:02:19.3]} 45... d4 {[%clk
0:00:50.6]} 46. a6 {[%clk 0:02:17.8]} 46... Rb6 {[%clk 0:00:45.8]} 47. Ra8+
{[%clk 0:02:07.8]} 47... Ke7 {[%clk 0:00:46.4]} 48. a7 {[%clk 0:02:04.8]} 48...
Rb7 {[%clk 0:00:43.4]} 49. Kc2 {[%clk 0:01:59.1]} 49... d3+ {[%clk 0:00:40.1]}
50. Kxd3 {[%clk 0:01:59.1]} 50... Rxb3+ {[%clk 0:00:40.9]} 51. Kc4 {[%clk
0:02:00]} 51... Ra3 {[%clk 0:00:42.2]} 52. Kc5 {[%clk 0:01:58.2]} 52... g5
{[%clk 0:00:39.3]} 53. Kb6 {[%clk 0:01:58.9]} 53... Rb3+ {[%clk 0:00:40.2]} 54.
Kc6 {[%clk 0:02:00]} 54... Ra3 {[%clk 0:00:41.2]} 55. Kb6 {[%clk 0:02:01.2]}
55... Rb3+ {[%clk 0:00:42]} 56. Kc6 {[%clk 0:02:02.3]} 56... Ra3 {[%clk
0:00:43]} 57. Kb6 {[%clk 0:02:03.5]} 1/2-1/2